[Event "FIDE Women World Blitz 2021"]
[Site "Warsaw"]
[Date "2021.12.29"]
[Round "7.2"]
[White "Gunina, Valentina"]
[Black "Zhukova, Natalia"]
[Result "1/2-1/2"]
[ECO "D24"]
[WhiteElo "2480"]
[BlackElo "2331"]
[Annotator "ChessBase"]
[PlyCount "97"]
[EventDate "2021.12.29"]
[EventType "swiss"]
[EventCountry "POL"]
[Tiebreak "Cut1 Buchholz"]
[SourceTitle "playchess.com"]
[Source "ChessBase"]
[SourceQuality "1"]
[TimeControl "180+2"]

1. d4 {[%emt 0:00:02]} d5 {[%emt 0:00:01]} 2. c4 {[%emt 0:00:02]} e6 {[%emt 0:
00:01]} 3. Nf3 {[%emt 0:00:01]} Nf6 {[%emt 0:00:08]} 4. Nc3 {[%emt 0:00:02]}
dxc4 {[%emt 0:00:03]} 5. e4 {[%emt 0:00:01]} b5 {[%emt 0:00:03]} 6. e5 {
[%emt 0:00:03]} Nd5 {[%emt 0:00:02]} 7. Nxb5 {[%emt 0:00:02]} Nb6 {[%emt 0:00:
02]} 8. Be2 {[%emt 0:00:02]} Nc6 {[%emt 0:00:06]} 9. Be3 {[%emt 0:00:01]} Rb8 {
[%emt 0:00:16]} 10. Nc3 {[%emt 0:00:02]} Be7 {[%emt 0:00:06]} 11. a3 {[%emt 0:
00:01]} O-O {[%emt 0:00:06]} 12. Qc2 {[%emt 0:00:02]} f5 {[%emt 0:00:09]} 13.
exf6 {[%emt 0:00:06]} Bxf6 {[%emt 0:00:02]} 14. Rd1 {[%emt 0:00:01]} Ba6 {
[%emt 0:00:30]} 15. Ne4 {[%emt 0:00:09]} Qd5 {[%emt 0:00:08]} 16. h4 {[%emt 0:
00:37]} Qf5 {[%emt 0:00:26]} 17. g4 {[%emt 0:00:26]} Qa5+ {[%emt 0:00:11]} 18.
Kf1 {[%emt 0:00:13]} Nd5 {[%emt 0:00:05]} 19. Kg2 {[%emt 0:00:14]} Nxe3+ {
[%emt 0:00:22]} 20. fxe3 {[%emt 0:00:01]} Ne7 {[%emt 0:00:04]} 21. g5 {[%emt 0:
00:10]} Nf5 {[%emt 0:00:03]} 22. Qc1 {[%emt 0:00:29]} Be7 {[%emt 0:00:12]} 23.
Nf2 {[%emt 0:00:10]} Rb3 {[%emt 0:00:05]} 24. Ng4 {[%emt 0:00:03]} Rfb8 {
[%emt 0:00:07]} 25. Bxc4 {[%emt 0:00:02]} Rxb2+ {[%emt 0:00:03]} 26. Kh3 {
[%emt 0:00:01]} Bxc4 {[%emt 0:00:13]} 27. Qxc4 {[%emt 0:00:01]} Qd5 {[%emt 0:
00:05]} 28. Qxd5 {[%emt 0:00:04]} exd5 {[%emt 0:00:01]} 29. Rc1 {[%emt 0:00:06]
} Bd6 {[%emt 0:00:02]} 30. Nfe5 {[%emt 0:00:06]} R8b3 {[%emt 0:00:02]} 31. Rhf1
{[%emt 0:00:03]} Nxe3 {[%emt 0:00:03]} 32. Nxe3 {[%emt 0:00:05]} Rxe3+ {
[%emt 0:00:01]} 33. Kg4 {[%emt 0:00:01]} g6 {[%emt 0:00:11]} 34. Rf3 {[%emt 0:
00:11]} Re4+ {[%emt 0:00:03]} 35. Kh3 {[%emt 0:00:03]} Rxd4 {[%emt 0:00:01]}
36. Ng4 {[%emt 0:00:01]} Re2 {[%emt 0:00:07]} 37. Rcf1 {[%emt 0:00:02]} Re7 {
[%emt 0:00:03]} 38. Nh6+ {[%emt 0:00:05]} Kg7 {[%emt 0:00:02]} 39. Rf7+ {
[%emt 0:00:06]} Rxf7 {[%emt 0:00:00]} 40. Rxf7+ {[%emt 0:00:01]} Kh8 {[%emt 0:
00:01]} 41. Rd7 {[%emt 0:00:01]} Rf4 {[%emt 0:00:02]} 42. Nf7+ {[%emt 0:00:01]}
Kg8 {[%emt 0:00:01]} 43. Nh6+ {[%emt 0:00:02]} Kh8 {[%emt 0:00:01]} 44. a4 {
[%emt 0:00:03]} Rf8 {[%emt 0:00:02]} 45. Kg2 {[%emt 0:00:05]} d4 {[%emt 0:00:
03]} 46. Nf7+ {[%emt 0:00:02]} Kg8 {[%emt 0:00:01]} 47. Nh6+ {[%emt 0:00:02]}
Kh8 {[%emt 0:00:00]} 48. Nf7+ {[%emt 0:00:01]} Kg8 {[%emt 0:00:01]} 49. Nh6+ {
[%emt 0:00:04]} 1/2-1/2

[Event "FIDE Women World Blitz 2021"]
[Site "Warsaw"]
[Date "2021.12.29"]
[Round "7.2"]
[White "Nur-Mukhametova, Alisa"]
[Black "Fernandez, Maria Florencia"]
[Result "0-1"]
[ECO "E62"]
[WhiteElo "2225"]
[BlackElo "2184"]
[Annotator "NA"]
[PlyCount "86"]
[EventDate "2021.12.29"]
[EventType "swiss"]
[EventCountry "POL"]
[Tiebreak "Cut1 Buchholz"]
[SourceTitle "playchess.com"]
[Source "ChessBase"]
[SourceQuality "1"]
[TimeControl "180+2"]

1. Nf3 {[%emt 0:00:02]} Nf6 {[%emt 0:00:01]} 2. g3 {[%emt 0:00:02]} g6 {
[%emt 0:00:01]} 3. Bg2 {[%emt 0:00:00]} Bg7 {[%emt 0:00:01]} 4. O-O {[%emt 0:
00:02]} O-O {[%emt 0:00:02]} 5. d4 {[%emt 0:00:01]} d6 {[%emt 0:00:01]} 6. c4 {
[%emt 0:00:01]} Nc6 {[%emt 0:00:01]} 7. Nc3 {[%emt 0:00:01]} Bf5 {[%emt 0:00:
01]} 8. Re1 {[%emt 0:00:48]} e5 {[%emt 0:00:03]} 9. dxe5 {[%emt 0:00:21]} dxe5
{[%emt 0:00:06]} 10. Bg5 {[%emt 0:00:18]} h6 {[%emt 0:00:07]} 11. Qxd8 {
[%emt 0:00:13]} Raxd8 {[%emt 0:00:01]} 12. Bxf6 {[%emt 0:00:02]} Bxf6 {[%emt 0:
00:05]} 13. Nd5 {[%emt 0:00:01]} Bg7 {[%emt 0:00:05]} 14. e4 {[%emt 0:00:23]}
Be6 {[%emt 0:00:15]} 15. Nxc7 {[%emt 0:00:15]} Bxc4 {[%emt 0:00:01]} 16. b3 {
[%emt 0:00:09]} Rd7 {[%emt 0:00:11]} 17. bxc4 {[%emt 0:00:35]} Rxc7 {[%emt 0:
00:01]} 18. Rec1 {[%emt 0:00:12]} Na5 {[%emt 0:00:05]} 19. Bf1 {[%emt 0:00:06]}
Rfc8 {[%emt 0:00:09]} 20. Rab1 {[%emt 0:00:06]} b6 {[%emt 0:00:04]} 21. Nd2 {
[%emt 0:00:01]} h5 {[%emt 0:00:02]} 22. Bh3 {[%emt 0:00:03]} Rd8 {[%emt 0:00:
06]} 23. Nb3 {[%emt 0:00:02]} Bh6 {[%emt 0:00:13]} 24. Rc2 {[%emt 0:00:03]}
Rxc4 {[%emt 0:00:06]} 25. Rxc4 {[%emt 0:00:01]} Nxc4 {[%emt 0:00:01]} 26. Bf1 {
[%emt 0:00:02]} Na3 {[%emt 0:00:24]} 27. Rb2 {[%emt 0:00:00]} Rd1 {[%emt 0:00:
05]} 28. Kg2 {[%emt 0:00:01]} a5 {[%emt 0:00:20]} 29. Be2 {[%emt 0:00:02]} Re1
{[%emt 0:00:07]} 30. Bf3 {[%emt 0:00:05]} a4 {[%emt 0:00:16]} 31. Nd2 {[%emt 0:
00:01]} b5 {[%emt 0:00:01]} 32. h4 {[%emt 0:00:03]} b4 {[%emt 0:00:05]} 33. Nf1
{[%emt 0:00:01]} Bf8 {[%emt 0:00:06]} 34. Ne3 {[%emt 0:00:03]} Rc1 {[%emt 0:00:
10]} 35. Nd5 {[%emt 0:00:02]} Nc2 {[%emt 0:00:14]} 36. Be2 {[%emt 0:00:02]} a3
{[%emt 0:00:06]} 37. Rb3 {[%emt 0:00:02]} Nd4 {[%emt 0:00:01]} 38. Re3 {
[%emt 0:00:02]} Rc2 {[%emt 0:00:04]} 39. Bd1 {[%emt 0:00:02]} Rxa2 {[%emt 0:00:
02]} 40. Ba4 {[%emt 0:00:03]} Rb2 {[%emt 0:00:05]} 41. Nf6+ {[%emt 0:00:02]}
Kg7 {[%emt 0:00:02]} 42. Ne8+ {[%emt 0:00:01]} Kh6 {[%emt 0:00:01]} 43. Kg1 {
[%emt 0:00:03]} a2 {[%emt 0:00:02]} 0-1

[Event "FIDE Women World Blitz 2021"]
[Site "Warsaw"]
[Date "2021.12.29"]
[Round "7.3"]
[White "Assaubayeva, Bibisara"]
[Black "Paehtz, Elisabeth"]
[Result "1-0"]
[ECO "C41"]
[WhiteElo "2400"]
[BlackElo "2485"]
[Annotator "ChessBase"]
[PlyCount "91"]
[EventDate "2021.12.29"]
[EventType "swiss"]
[EventCountry "POL"]
[Tiebreak "Cut1 Buchholz"]
[SourceTitle "playchess.com"]
[Source "ChessBase"]
[SourceQuality "1"]
[TimeControl "180+2"]

1. d4 {[%emt 0:00:01]} d6 {[%emt 0:00:00]} 2. e4 {[%emt 0:00:02]} Nf6 {[%emt 0:
00:02]} 3. Nc3 {[%emt 0:00:02]} e5 {[%emt 0:00:00]} 4. Nf3 {[%emt 0:00:01]}
Nbd7 {[%emt 0:00:01]} 5. Bc4 {[%emt 0:00:03]} Be7 {[%emt 0:00:02]} 6. O-O {
[%emt 0:00:03]} c6 {[%emt 0:00:05]} 7. Re1 {[%emt 0:00:04]} Qc7 {[%emt 0:00:02]
} 8. h3 {[%emt 0:00:02]} h6 {[%emt 0:00:01]} 9. Be3 {[%emt 0:00:05]} Nf8 {
[%emt 0:00:02]} 10. a4 {[%emt 0:00:05]} Ng6 {[%emt 0:00:06]} 11. a5 {[%emt 0:
00:03]} O-O {[%emt 0:00:05]} 12. Qd2 {[%emt 0:00:07]} Kh7 {[%emt 0:00:04]} 13.
Bb3 {[%emt 0:00:10]} Rb8 {[%emt 0:00:11]} 14. dxe5 {[%emt 0:00:06]} dxe5 {
[%emt 0:00:01]} 15. Bxa7 {[%emt 0:00:03]} Ra8 {[%emt 0:00:01]} 16. Bb6 {
[%emt 0:00:01]} Qd7 {[%emt 0:00:01]} 17. Rad1 {[%emt 0:00:07]} Qxd2 {[%emt 0:
00:02]} 18. Rxd2 {[%emt 0:00:06]} Bb4 {[%emt 0:00:01]} 19. Bc7 {[%emt 0:00:14]}
Bxa5 {[%emt 0:00:26]} 20. Bd6 {[%emt 0:00:02]} Bxc3 {[%emt 0:00:26]} 21. bxc3 {
[%emt 0:00:02]} Be6 {[%emt 0:00:46]} 22. Bxf8 {[%emt 0:00:03]} Rxf8 {[%emt 0:
00:06]} 23. Bxe6 {[%emt 0:00:09]} fxe6 {[%emt 0:00:01]} 24. Rb1 {[%emt 0:00:11]
} Nxe4 {[%emt 0:00:04]} 25. Rd7 {[%emt 0:00:04]} Nc5 {[%emt 0:00:01]} 26. Rd6 {
[%emt 0:00:18]} Kg8 {[%emt 0:00:08]} 27. Re1 {[%emt 0:00:10]} Rf5 {[%emt 0:00:
05]} 28. Nd2 {[%emt 0:00:12]} Rf4 {[%emt 0:00:05]} 29. f3 {[%emt 0:00:16]} Kf7
{[%emt 0:00:23]} 30. Rd8 {[%emt 0:00:01]} Ke7 {[%emt 0:00:02]} 31. Rg8 {
[%emt 0:00:02]} Rf7 {[%emt 0:00:12]} 32. Ne4 {[%emt 0:00:01]} Nxe4 {[%emt 0:00:
09]} 33. Rxe4 {[%emt 0:00:01]} Kd6 {[%emt 0:00:04]} 34. Rg4 {[%emt 0:00:04]}
Nf4 {[%emt 0:00:05]} 35. R4xg7 {[%emt 0:00:03]} Rxg7 {[%emt 0:00:10]} 36. Rxg7
{[%emt 0:00:01]} b5 {[%emt 0:00:01]} 37. Kf2 {[%emt 0:00:07]} Kd5 {[%emt 0:00:
03]} 38. Ke3 {[%emt 0:00:08]} Kc4 {[%emt 0:00:01]} 39. Kd2 {[%emt 0:00:01]} h5
{[%emt 0:00:03]} 40. h4 {[%emt 0:00:03]} Nd5 {[%emt 0:00:06]} 41. Rg5 {[%emt 0:
00:04]} Nxc3 {[%emt 0:00:02]} 42. Rxe5 {[%emt 0:00:05]} c5 {[%emt 0:00:02]} 43.
Rxh5 {[%emt 0:00:03]} Nd5 {[%emt 0:00:00]} 44. Rh8 {[%emt 0:00:05]} b4 {
[%emt 0:00:02]} 45. h5 {[%emt 0:00:03]} Kd4 {[%emt 0:00:02]} 46. h6 {[%emt 0:
00:03]} 1-0

[Event "FIDE Women World Blitz 2021"]
[Site "Warsaw"]
[Date "2021.12.29"]
[Round "7.3"]
[White "Kazarian, Anna-Maja"]
[Black "Sandu, Mihaela"]
[Result "0-1"]
[ECO "B23"]
[WhiteElo "2138"]
[BlackElo "2244"]
[Annotator "NA"]
[PlyCount "102"]
[EventDate "2021.12.29"]
[EventType "swiss"]
[EventCountry "POL"]
[Tiebreak "Cut1 Buchholz"]
[SourceTitle "playchess.com"]
[Source "ChessBase"]
[SourceQuality "1"]
[TimeControl "180+2"]

1. e4 {[%emt 0:00:01]} c5 {[%emt 0:00:00]} 2. Nc3 {[%emt 0:00:05]} Nc6 {
[%emt 0:00:02]} 3. Bb5 {[%emt 0:00:02]} g6 {[%emt 0:00:06]} 4. f4 {[%emt 0:00:
12]} Bg7 {[%emt 0:00:01]} 5. Bxc6 {[%emt 0:00:08]} bxc6 {[%emt 0:00:03]} 6. Nf3
{[%emt 0:00:01]} d6 {[%emt 0:00:16]} 7. O-O {[%emt 0:00:03]} Nf6 {[%emt 0:00:
09]} 8. d3 {[%emt 0:00:08]} Rb8 {[%emt 0:00:03]} 9. Rb1 {[%emt 0:00:02]} O-O {
[%emt 0:00:04]} 10. Qe1 {[%emt 0:00:15]} d5 {[%emt 0:00:44]} 11. e5 {[%emt 0:
00:06]} Ne8 {[%emt 0:00:15]} 12. Ne2 {[%emt 0:00:16]} Nc7 {[%emt 0:00:05]} 13.
Ng3 {[%emt 0:00:12]} Bg4 {[%emt 0:00:13]} 14. f5 {[%emt 0:00:36]} Bxf3 {
[%emt 0:00:14]} 15. Rxf3 {[%emt 0:00:02]} d4 {[%emt 0:00:04]} 16. Bf4 {[%emt 0:
01:03]} Nd5 {[%emt 0:00:01]} 17. h4 {[%emt 0:00:11]} Nxf4 {[%emt 0:00:07]} 18.
Rxf4 {[%emt 0:00:01]} Qd5 {[%emt 0:00:01]} 19. f6 {[%emt 0:00:06]} exf6 {
[%emt 0:00:01]} 20. exf6 {[%emt 0:00:01]} Bh6 {[%emt 0:00:06]} 21. Re4 {
[%emt 0:00:02]} Qd6 {[%emt 0:00:05]} 22. Qf2 {[%emt 0:00:07]} Be3 {[%emt 0:00:
05]} 23. Rxe3 {[%emt 0:00:00]} dxe3 {[%emt 0:00:01]} 24. Qxe3 {[%emt 0:00:01]}
Qd4 {[%emt 0:00:01]} 25. Qxd4 {[%emt 0:00:09]} cxd4 {[%emt 0:00:01]} 26. Ne2 {
[%emt 0:00:00]} Rfd8 {[%emt 0:00:02]} 27. b3 {[%emt 0:00:01]} Rd6 {[%emt 0:00:
02]} 28. Rf1 {[%emt 0:00:02]} Re8 {[%emt 0:00:02]} 29. Rf2 {[%emt 0:00:01]}
Ree6 {[%emt 0:00:03]} 30. g4 {[%emt 0:00:03]} Rxf6 {[%emt 0:00:01]} 31. Rxf6 {
[%emt 0:00:02]} Rxf6 {[%emt 0:00:01]} 32. Nxd4 {[%emt 0:00:00]} c5 {[%emt 0:00:
02]} 33. Ne2 {[%emt 0:00:02]} Ra6 {[%emt 0:00:04]} 34. a4 {[%emt 0:00:00]} Re6
{[%emt 0:00:01]} 35. Kf2 {[%emt 0:00:01]} f5 {[%emt 0:00:03]} 36. gxf5 {
[%emt 0:00:02]} gxf5 {[%emt 0:00:03]} 37. Kf3 {[%emt 0:00:00]} Kf7 {[%emt 0:00:
01]} 38. Nf4 {[%emt 0:00:04]} Re1 {[%emt 0:00:02]} 39. Ne2 {[%emt 0:00:07]} Kf6
{[%emt 0:00:02]} 40. d4 {[%emt 0:00:03]} cxd4 {[%emt 0:00:04]} 41. Nxd4 {
[%emt 0:00:00]} Re4 {[%emt 0:00:02]} 42. Ne2 {[%emt 0:00:02]} Rxh4 {[%emt 0:00:
01]} 43. c4 {[%emt 0:00:01]} Rh3+ {[%emt 0:00:01]} 44. Ng3 {[%emt 0:00:01]} Rh2
{[%emt 0:00:04]} 45. Ne2 {[%emt 0:00:02]} h5 {[%emt 0:00:03]} 46. c5 {[%emt 0:
00:02]} Rh3+ {[%emt 0:00:01]} 47. Ng3 {[%emt 0:00:02]} h4 {[%emt 0:00:01]} 48.
b4 {[%emt 0:00:05]} Rxg3+ {[%emt 0:00:01]} 49. Kf2 {[%emt 0:00:01]} Rb3 {
[%emt 0:00:02]} 50. b5 {[%emt 0:00:00]} Rb4 {[%emt 0:00:02]} 51. c6 {[%emt 0:
00:04]} Rxa4 {[%emt 0:00:01]} 0-1

[Event "FIDE Women World Blitz 2021"]
[Site "Warsaw"]
[Date "2021.12.29"]
[Round "7.4"]
[White "Bulmaga, Irina"]
[Black "Koneru, Humpy"]
[Result "1/2-1/2"]
[ECO "C45"]
[WhiteElo "2405"]
[BlackElo "2586"]
[Annotator "ChessBase"]
[PlyCount "66"]
[EventDate "2021.12.29"]
[EventType "swiss"]
[EventCountry "POL"]
[Tiebreak "Cut1 Buchholz"]
[SourceTitle "playchess.com"]
[Source "ChessBase"]
[SourceQuality "1"]
[TimeControl "180+2"]

1. e4 {[%emt 0:00:02]} e5 {[%emt 0:00:01]} 2. Nf3 {[%emt 0:00:01]} Nc6 {
[%emt 0:00:02]} 3. d4 {[%emt 0:00:02]} exd4 {[%emt 0:00:02]} 4. Nxd4 {[%emt 0:
00:02]} Nf6 {[%emt 0:00:06]} 5. Nxc6 {[%emt 0:00:03]} bxc6 {[%emt 0:00:02]} 6.
e5 {[%emt 0:00:02]} Qe7 {[%emt 0:00:07]} 7. Qe2 {[%emt 0:00:02]} Nd5 {[%emt 0:
00:02]} 8. c4 {[%emt 0:00:02]} Ba6 {[%emt 0:00:03]} 9. g3 {[%emt 0:00:23]} g6 {
[%emt 0:00:18]} 10. b3 {[%emt 0:00:07]} Bg7 {[%emt 0:00:23]} 11. Bb2 {[%emt 0:
00:01]} O-O {[%emt 0:00:10]} 12. Bg2 {[%emt 0:00:02]} Rae8 {[%emt 0:00:14]} 13.
O-O {[%emt 0:00:03]} Nb6 {[%emt 0:00:37]} 14. Re1 {[%emt 0:00:18]} f6 {[%emt 0:
00:23]} 15. e6 {[%emt 0:00:11]} c5 {[%emt 0:00:21]} 16. Nc3 {[%emt 0:01:18]}
Qxe6 {[%emt 0:00:16]} 17. Qxe6+ {[%emt 0:00:02]} Rxe6 {[%emt 0:00:04]} 18. Rxe6
{[%emt 0:00:03]} dxe6 {[%emt 0:00:01]} 19. Na4 {[%emt 0:00:04]} Rd8 {[%emt 0:
00:04]} 20. Nxc5 {[%emt 0:00:08]} Bc8 {[%emt 0:00:01]} 21. Bc3 {[%emt 0:00:05]}
f5 {[%emt 0:00:05]} 22. Bxg7 {[%emt 0:00:13]} Kxg7 {[%emt 0:00:00]} 23. Re1 {
[%emt 0:00:03]} Kf6 {[%emt 0:00:02]} 24. Bb7 {[%emt 0:00:07]} Bxb7 {[%emt 0:00:
07]} 25. Nxb7 {[%emt 0:00:02]} Rd2 {[%emt 0:00:02]} 26. Nc5 {[%emt 0:00:06]} e5
{[%emt 0:00:04]} 27. a4 {[%emt 0:00:01]} e4 {[%emt 0:00:06]} 28. f3 {[%emt 0:
00:11]} exf3 {[%emt 0:00:06]} 29. Re3 {[%emt 0:00:04]} Rg2+ {[%emt 0:00:08]}
30. Kh1 {[%emt 0:00:02]} Rf2 {[%emt 0:00:00]} 31. Kg1 {[%emt 0:00:04]} Rg2+ {
[%emt 0:00:01]} 32. Kh1 {[%emt 0:00:01]} Rf2 {[%emt 0:00:01]} 33. Kg1 {[%emt 0:
00:04]} Rg2+ {[%emt 0:00:01]} 1/2-1/2

[Event "FIDE Women World Blitz 2021"]
[Site "Warsaw"]
[Date "2021.12.29"]
[Round "7.4"]
[White "Utiatskaja, Irina"]
[Black "Sliwicka, Alicja"]
[Result "0-1"]
[ECO "B70"]
[WhiteElo "2184"]
[BlackElo "2303"]
[Annotator "NA"]
[PlyCount "44"]
[EventDate "2021.12.29"]
[EventType "swiss"]
[EventCountry "POL"]
[Tiebreak "Cut1 Buchholz"]
[SourceTitle "playchess.com"]
[Source "ChessBase"]
[SourceQuality "1"]
[TimeControl "180+2"]

1. e4 {[%emt 0:00:01]} c5 {[%emt 0:00:01]} 2. Nf3 {[%emt 0:00:01]} d6 {[%emt 0:
00:01]} 3. d4 {[%emt 0:00:01]} cxd4 {[%emt 0:00:01]} 4. Nxd4 {[%emt 0:00:00]}
Nf6 {[%emt 0:00:01]} 5. Nc3 {[%emt 0:00:02]} Bd7 {[%emt 0:00:01]} 6. g3 {
[%emt 0:00:05]} Nc6 {[%emt 0:00:02]} 7. Bg2 {[%emt 0:00:02]} g6 {[%emt 0:00:01]
} 8. O-O {[%emt 0:00:09]} Bg7 {[%emt 0:00:01]} 9. Be3 {[%emt 0:00:03]} Ng4 {
[%emt 0:00:22]} 10. Nxc6 {[%emt 0:00:03]} Nxe3 {[%emt 0:00:18]} 11. Nxd8 {
[%emt 0:00:15]} Nxd1 {[%emt 0:00:02]} 12. Nxb7 {[%emt 0:01:04]} Nxc3 {[%emt 0:
00:02]} 13. bxc3 {[%emt 0:00:01]} Bxc3 {[%emt 0:00:05]} 14. Rab1 {[%emt 0:00:
01]} O-O {[%emt 0:00:09]} 15. Rb3 {[%emt 0:00:19]} Rfc8 {[%emt 0:00:18]} 16. h3
{[%emt 0:00:55]} a5 {[%emt 0:00:05]} 17. f4 {[%emt 0:00:08]} Be6 {[%emt 0:00:
06]} 18. Ra3 {[%emt 0:00:10]} Bb4 {[%emt 0:00:31]} 19. Raf3 {[%emt 0:00:05]}
Ra7 {[%emt 0:00:12]} 20. f5 {[%emt 0:00:06]} Bc4 {[%emt 0:00:05]} 21. Rb1 {
[%emt 0:00:05]} Rxb7 {[%emt 0:00:03]} 22. c3 {[%emt 0:00:03]} Bc5+ {[%emt 0:00:
01]} 0-1

[Event "FIDE Women World Blitz 2021"]
[Site "Warsaw"]
[Date "2021.12.29"]
[Round "7.5"]
[White "Abdumalik, Zhansaya"]
[Black "Vantika Agrawal"]
[Result "1-0"]
[ECO "B51"]
[WhiteElo "2507"]
[BlackElo "2329"]
[Annotator "ChessBase"]
[PlyCount "67"]
[EventDate "2021.12.29"]
[EventType "swiss"]
[EventCountry "POL"]
[Tiebreak "Cut1 Buchholz"]
[SourceTitle "playchess.com"]
[Source "ChessBase"]
[SourceQuality "1"]
[TimeControl "180+2"]

1. e4 {[%emt 0:00:01]} c5 {[%emt 0:00:01]} 2. Nf3 {[%emt 0:00:01]} d6 {[%emt 0:
00:00]} 3. Bb5+ {[%emt 0:00:04]} Nd7 {[%emt 0:00:02]} 4. d4 {[%emt 0:00:02]}
cxd4 {[%emt 0:00:02]} 5. Nxd4 {[%emt 0:00:01]} Ngf6 {[%emt 0:00:12]} 6. O-O {
[%emt 0:00:02]} a6 {[%emt 0:00:10]} 7. Bd3 {[%emt 0:00:02]} e6 {[%emt 0:00:22]}
8. Re1 {[%emt 0:00:02]} Be7 {[%emt 0:00:00]} 9. Bf1 {[%emt 0:00:10]} O-O {
[%emt 0:00:02]} 10. c4 {[%emt 0:00:01]} Qc7 {[%emt 0:00:03]} 11. b3 {[%emt 0:
00:10]} b6 {[%emt 0:00:02]} 12. Bb2 {[%emt 0:00:02]} Bb7 {[%emt 0:00:01]} 13.
f3 {[%emt 0:00:01]} Rfe8 {[%emt 0:00:06]} 14. Nc3 {[%emt 0:00:02]} Rac8 {
[%emt 0:00:04]} 15. Rc1 {[%emt 0:00:03]} Qb8 {[%emt 0:00:06]} 16. Kh1 {[%emt 0:
00:03]} Bd8 {[%emt 0:00:19]} 17. Bd3 {[%emt 0:00:14]} Bc7 {[%emt 0:00:05]} 18.
Bb1 {[%emt 0:00:01]} h6 {[%emt 0:00:20]} 19. Qc2 {[%emt 0:00:04]} Qa8 {[%emt 0:
00:21]} 20. f4 {[%emt 0:00:03]} e5 {[%emt 0:00:15]} 21. fxe5 {[%emt 0:00:13]}
dxe5 {[%emt 0:00:12]} 22. Nf5 {[%emt 0:00:02]} Nc5 {[%emt 0:00:04]} 23. Nd5 {
[%emt 0:00:02]} Bxd5 {[%emt 0:00:15]} 24. exd5 {[%emt 0:00:04]} Qb8 {[%emt 0:
00:12]} 25. Rf1 {[%emt 0:00:04]} Ncd7 {[%emt 0:00:09]} 26. Ba3 {[%emt 0:00:23]}
Kh8 {[%emt 0:00:11]} 27. d6 {[%emt 0:00:06]} Bd8 {[%emt 0:00:01]} 28. Ne7 {
[%emt 0:00:09]} Bxe7 {[%emt 0:00:02]} 29. dxe7 {[%emt 0:00:01]} g6 {[%emt 0:00:
03]} 30. Rcd1 {[%emt 0:00:05]} Kg7 {[%emt 0:00:02]} 31. Qf2 {[%emt 0:00:01]}
Qb7 {[%emt 0:00:06]} 32. Rxd7 {[%emt 0:00:06]} Nxd7 {[%emt 0:00:11]} 33. Qxf7+
{[%emt 0:00:01]} Kh8 {[%emt 0:00:01]} 34. Bxg6 {[%emt 0:00:11]} 1-0

[Event "FIDE Women World Blitz 2021"]
[Site "Warsaw"]
[Date "2021.12.29"]
[Round "7.5"]
[White "Smietanska, Wiktoria"]
[Black "Doluhanova, Evgeniya"]
[Result "1/2-1/2"]
[ECO "E94"]
[WhiteElo "1765"]
[BlackElo "2237"]
[Annotator "NA"]
[PlyCount "144"]
[EventDate "2021.12.29"]
[EventType "swiss"]
[EventCountry "POL"]
[Tiebreak "Cut1 Buchholz"]
[SourceTitle "playchess.com"]
[Source "ChessBase"]
[SourceQuality "1"]
[TimeControl "180+2"]

1. c4 {[%emt 0:00:01]} Nf6 {[%emt 0:00:01]} 2. Nc3 {[%emt 0:00:01]} e5 {
[%emt 0:00:01]} 3. Nf3 {[%emt 0:00:01]} Nc6 {[%emt 0:00:04]} 4. e4 {[%emt 0:00:
01]} d6 {[%emt 0:00:06]} 5. d4 {[%emt 0:00:01]} exd4 {[%emt 0:00:02]} 6. Nxd4 {
[%emt 0:00:01]} g6 {[%emt 0:00:15]} 7. Be2 {[%emt 0:00:12]} Bg7 {[%emt 0:00:01]
} 8. Nc2 {[%emt 0:00:13]} O-O {[%emt 0:00:04]} 9. O-O {[%emt 0:00:05]} Re8 {
[%emt 0:00:10]} 10. f3 {[%emt 0:00:07]} Be6 {[%emt 0:00:06]} 11. Ne3 {[%emt 0:
00:04]} Nd7 {[%emt 0:00:09]} 12. Ncd5 {[%emt 0:00:20]} Nd4 {[%emt 0:00:05]} 13.
Bd3 {[%emt 0:00:10]} c6 {[%emt 0:00:18]} 14. Nc3 {[%emt 0:00:05]} Ne5 {[%emt 0:
00:11]} 15. f4 {[%emt 0:00:15]} Nxd3 {[%emt 0:00:10]} 16. Qxd3 {[%emt 0:00:02]}
Qb6 {[%emt 0:00:08]} 17. Kh1 {[%emt 0:00:21]} f5 {[%emt 0:00:02]} 18. exf5 {
[%emt 0:00:14]} Nxf5 {[%emt 0:00:02]} 19. Nxf5 {[%emt 0:00:15]} Bxf5 {[%emt 0:
00:02]} 20. Qf3 {[%emt 0:00:41]} Qd4 {[%emt 0:00:13]} 21. g4 {[%emt 0:00:20]}
Bd7 {[%emt 0:00:30]} 22. f5 {[%emt 0:00:10]} gxf5 {[%emt 0:00:12]} 23. gxf5 {
[%emt 0:00:02]} Rf8 {[%emt 0:00:05]} 24. Rg1 {[%emt 0:00:05]} Rxf5 {[%emt 0:00:
06]} 25. Qg3 {[%emt 0:00:01]} Rf7 {[%emt 0:00:14]} 26. Bh6 {[%emt 0:00:01]} Bf5
{[%emt 0:00:06]} 27. Rad1 {[%emt 0:00:03]} Qe5 {[%emt 0:00:14]} 28. Qg5 {
[%emt 0:00:03]} Be4+ {[%emt 0:00:03]} 29. Nxe4 {[%emt 0:00:01]} Qxe4+ {[%emt 0:
00:02]} 30. Rg2 {[%emt 0:00:00]} Qe5 {[%emt 0:00:03]} 31. Qg4 {[%emt 0:00:03]}
Qf6 {[%emt 0:00:03]} 32. Bg5 {[%emt 0:00:03]} Qf5 {[%emt 0:00:03]} 33. Qg3 {
[%emt 0:00:02]} Raf8 {[%emt 0:00:03]} 34. Rdg1 {[%emt 0:00:01]} Kh8 {[%emt 0:
00:02]} 35. Qxd6 {[%emt 0:00:00]} Qf3 {[%emt 0:00:08]} 36. Qg3 {[%emt 0:00:02]}
Qxg3 {[%emt 0:00:02]} 37. Rxg3 {[%emt 0:00:01]} h6 {[%emt 0:00:01]} 38. Be3 {
[%emt 0:00:02]} Rd7 {[%emt 0:00:03]} 39. Rh3 {[%emt 0:00:04]} Kh7 {[%emt 0:00:
01]} 40. Rhg3 {[%emt 0:00:02]} Rff7 {[%emt 0:00:01]} 41. b3 {[%emt 0:00:01]}
Rfe7 {[%emt 0:00:02]} 42. Bc1 {[%emt 0:00:02]} a6 {[%emt 0:00:01]} 43. R3g2 {
[%emt 0:00:02]} Rf7 {[%emt 0:00:01]} 44. Rg3 {[%emt 0:00:02]} Rde7 {[%emt 0:00:
02]} 45. Rh3 {[%emt 0:00:01]} Re2 {[%emt 0:00:02]} 46. a3 {[%emt 0:00:04]} Rfe7
{[%emt 0:00:02]} 47. Rhg3 {[%emt 0:00:03]} Rc2 {[%emt 0:00:03]} 48. Bf4 {
[%emt 0:00:02]} Rf7 {[%emt 0:00:01]} 49. Be3 {[%emt 0:00:02]} Re2 {[%emt 0:00:
02]} 50. Rh3 {[%emt 0:00:02]} Re7 {[%emt 0:00:02]} 51. Bf4 {[%emt 0:00:02]} Rd7
{[%emt 0:00:02]} 52. Rhg3 {[%emt 0:00:03]} Be5 {[%emt 0:00:02]} 53. Bxe5 {
[%emt 0:00:02]} Rxe5 {[%emt 0:00:01]} 54. Rf3 {[%emt 0:00:02]} Re2 {[%emt 0:00:
02]} 55. Rgf1 {[%emt 0:00:02]} Kg6 {[%emt 0:00:02]} 56. Rf6+ {[%emt 0:00:01]}
Kg7 {[%emt 0:00:02]} 57. R6f3 {[%emt 0:00:02]} b5 {[%emt 0:00:02]} 58. Rg1+ {
[%emt 0:00:01]} Kh7 {[%emt 0:00:01]} 59. Rf6 {[%emt 0:00:02]} bxc4 {[%emt 0:00:
09]} 60. bxc4 {[%emt 0:00:01]} Ra2 {[%emt 0:00:02]} 61. Rxc6 {[%emt 0:00:01]}
Rxa3 {[%emt 0:00:00]} 62. c5 {[%emt 0:00:02]} Rc3 {[%emt 0:00:04]} 63. Rxa6 {
[%emt 0:00:02]} Rxc5 {[%emt 0:00:01]} 64. Rag6 {[%emt 0:00:02]} Rh5 {[%emt 0:
00:02]} 65. R6g2 {[%emt 0:00:02]} Rh4 {[%emt 0:00:01]} 66. Rg3 {[%emt 0:00:01]}
h5 {[%emt 0:00:01]} 67. Rg5 {[%emt 0:00:03]} Rd6 {[%emt 0:00:02]} 68. Rg7+ {
[%emt 0:00:02]} Kh6 {[%emt 0:00:01]} 69. Rg8 {[%emt 0:00:01]} Rg4 {[%emt 0:00:
07]} 70. R8xg4 {[%emt 0:00:03]} hxg4 {[%emt 0:00:01]} 71. Rxg4 {[%emt 0:00:02]}
Rd2 {[%emt 0:00:01]} 72. Rg2 {[%emt 0:00:04]} Rxg2 {[%emt 0:00:02]} 1/2-1/2